bitfinex/quotes_BTCUSD_20260125
["timestamp","ask_amount","ask_price","bid_price","bid_amount"]
[1769367299124,0.0001,87404.0,87389.0,0.04784315]
[1769367299331,0.0001,87404.0,87391.0,0.04784315]
[1769367299332,0.01144164,87400.0,87391.0,0.04784315]
[1769367299537,0.0001,87404.0,87394.0,0.04784315]
[1769367300821,0.22164,87403.0,87394.0,0.04784315]
[1769367301442,0.22164,87402.0,87394.0,0.04784315]
[1769367302679,0.22164,87401.0,87394.0,0.04784315]
[1769367302857,0.0004,87409.0,87397.0,1.10580416]
[1769367303065,0.22164,87408.0,87391.0,0.04993409]
[1769367303478,0.22164,87408.0,87393.0,0.04993409]
[1769367303695,0.51377003,87408.0,87393.0,0.04993409]
[1769367303879,0.49118053,87408.0,87393.0,0.04993409]
[1769367304079,0.49126689,87408.0,87393.0,0.04993409]
[1769367305129,8.636e-05,87408.0,87393.0,0.06137665]
[1769367305332,8.636e-05,87408.0,87396.0,1.10894442]
[1769367305591,8.636e-05,87408.0,87397.0,0.04993409]
[1769367305787,8.636e-05,87408.0,87390.0,0.1581287]
[1769367305788,0.0004,87412.0,87401.0,0.04993409]
[1769367305993,0.0004,87412.0,87403.0,0.04993409]
[1769367306201,0.0004,87412.0,87405.0,0.04993409]
[1769367307893,0.0002,87417.0,87410.0,0.04993409]
[1769367308096,0.27878978,87429.0,87412.0,1.10894442]
[1769367308308,0.0114385,87424.0,87413.0,0.0446211]
[1769367308515,0.01143902,87420.0,87404.0,0.04993409]
[1769367308723,0.44800827,87419.0,87404.0,0.04993409]
[1769367308929,0.43656911,87419.0,87404.0,0.04993409]
[1769367309354,0.01143929,87418.0,87403.0,8.636e-05]
[1769367309559,0.01143889,87421.0,87403.0,8.636e-05]
[1769367309560,1.15482925,87416.0,87403.0,8.636e-05]
[1769367309762,0.01144007,87412.0,87403.0,8.636e-05]
[1769367309969,0.44800892,87414.0,87403.0,8.636e-05]
[1769367310419,0.43656911,87406.0,87403.0,8.636e-05]
[1769367310612,0.43656911,87406.0,87393.0,0.04993409]
[1769367310826,0.3883,87448.0,87399.0,0.10091454]
[1769367311036,0.1758,87429.0,87420.0,1.10894442]
[1769367311244,0.00333437,87430.0,87423.0,0.04993409]
[1769367311883,0.00333437,87430.0,87423.0,1.10894442]
[1769367312061,0.00333437,87430.0,87424.0,0.04993409]
[1769367316562,0.00333437,87430.0,87424.0,1.17225098]
[1769367316969,0.00333437,87430.0,87424.0,0.04993409]
[1769367318185,0.00333437,87430.0,87408.0,0.0114406]
[1769367318383,0.01652898,87428.0,87413.0,0.10091454]
[1769367318793,0.01143968,87415.0,87396.0,0.04961538]
[1769367318997,0.00886577,87409.0,87389.0,0.04961538]
[1769367319196,0.00886577,87407.0,87389.0,0.04961538]
[1769367319399,0.00886577,87407.0,87389.0,1.18337535]
[1769367319731,0.00886577,87407.0,87386.0,0.01144348]
[1769367319732,0.04576,87408.0,87390.0,1.17193227]
[1769367319980,0.04576,87408.0,87391.0,0.04961538]
[1769367320185,0.00886577,87407.0,87391.0,0.04961538]
[1769367321184,0.00886577,87407.0,87392.0,0.04961538]
[1769367321613,0.04576,87406.0,87392.0,0.04961538]
[1769367322225,8.866e-05,87403.0,87383.0,0.04961538]
[1769367322431,8.866e-05,87403.0,87387.0,0.15052992]
[1769367322684,0.04584866,87403.0,87388.0,0.04961538]
[1769367322915,0.01144243,87394.0,87364.0,0.10091454]
[1769367323128,0.01144308,87389.0,87371.0,0.04961538]
[1769367323346,0.0313561,87390.0,87371.0,0.04961538]
[1769367323559,0.0081776,87389.0,87374.0,0.00033713]
[1769367324014,0.04576,87391.0,87377.0,1.12231689]
[1769367324238,0.04576,87391.0,87378.0,0.04961538]
[1769367324649,0.04576,87390.0,87380.0,1.12231689]
[1769367324851,0.04576,87390.0,87381.0,0.04961538]
[1769367325898,0.04576,87390.0,87375.0,1.17193227]
[1769367326104,0.04576,87390.0,87375.0,0.04961538]
[1769367326288,0.0539376,87390.0,87375.0,0.04961538]
[1769367326485,0.04576,87390.0,87375.0,0.04961538]
[1769367326694,0.0081776,87389.0,87375.0,0.04961538]
[1769367326895,0.0539776,87389.0,87375.0,0.04961538]
[1769367328891,0.0268587,87394.0,87375.0,0.04961538]
[1769367329064,0.0458,87388.0,87377.0,0.04961538]
[1769367329297,0.0350363,87394.0,87377.0,0.04961538]
[1769367329499,0.0458,87387.0,87377.0,0.04961538]
[1769367329749,0.0268587,87394.0,87377.0,0.04961538]
[1769367329953,0.0458,87386.0,87377.0,0.04961538]
[1769367330570,0.1758,87390.0,87377.0,0.04961538]
[1769367330867,0.0458,87385.0,87377.0,0.04961538]
[1769367331105,0.0081776,87393.0,87377.0,0.04961538]
[1769367331306,0.0458,87384.0,87377.0,0.04961538]
[1769367332277,0.0081776,87393.0,87377.0,0.04961538]
[1769367332457,0.2216,87392.0,87377.0,0.04961538]
[1769367332659,0.0081776,87391.0,87377.0,0.04961538]
[1769367332842,0.2216,87390.0,87377.0,0.04961538]
[1769367333040,0.2216,87390.0,87378.0,1.19280586]
[1769367333265,0.2216,87390.0,87378.0,0.04850475]
[1769367334058,0.0081776,87393.0,87378.0,0.04850475]
[1769367334283,0.2216,87392.0,87381.0,1.14430111]
[1769367334495,0.2216,87392.0,87384.0,1.14430111]
[1769367334719,0.2216,87392.0,87385.0,0.04850475]
[1769367334900,0.2297776,87392.0,87375.0,0.01144492]
[1769367335061,0.2297776,87392.0,87379.0,0.14941929]
[1769367335929,0.0081776,87390.0,87374.0,0.00037833]
[1769367336241,0.0081776,87388.0,87374.0,0.00037833]
[1769367336880,0.0081776,87388.0,87374.0,0.04888308]
[1769367337084,0.0458,87387.0,87374.0,0.04888308]
[1769367338411,0.0458,87387.0,87375.0,1.14430111]
[1769367338609,0.0458,87387.0,87376.0,0.04999999]
[1769367339059,0.17588178,87391.0,87376.0,0.04999999]
[1769367339291,0.0458,87386.0,87376.0,0.04999999]
[1769367339947,0.0458,87385.0,87376.0,0.04999999]
[1769367340164,8.178e-05,87391.0,87376.0,0.04999999]
[1769367340507,0.0114419,87398.0,87376.0,0.04999999]
[1769367340508,0.0458,87384.0,87377.0,0.04999999]
[1769367341547,0.1758,87390.0,87377.0,0.04999999]
[1769367341752,0.0458,87383.0,87377.0,0.04999999]
[1769367345034,0.0458,87383.0,87374.0,0.00037833]
[1769367345284,0.0458,87383.0,87374.0,0.05262697]
[1769367346081,0.82110722,87394.0,87374.0,0.05262697]
[1769367346291,0.0458,87385.0,87374.0,0.05262697]
[1769367347654,0.0295,87385.0,87374.0,0.05262697]
[1769367347857,0.0458,87384.0,87374.0,1.19692808]
[1769367348636,0.0458,87384.0,87375.0,0.05449731]
[1769367349404,8.097e-05,87391.0,87375.0,0.05449731]
[1769367349603,0.80164911,87390.0,87374.0,0.00037833]
[1769367350213,0.11442279,87389.0,87374.0,0.00037833]
[1769367350492,0.00801649,87388.0,87374.0,0.00037833]
[1769367351740,0.00801649,87388.0,87374.0,0.05712428]
[1769367352171,0.11455095,87387.0,87374.0,0.05712428]
[1769367352365,0.11455095,87386.0,87374.0,0.05712428]
[1769367352670,0.00801649,87388.0,87374.0,0.05712428]
[1769367352908,0.11455103,87387.0,87374.0,0.05712428]
[1769367353116,0.11455103,87386.0,87374.0,0.05712428]
[1769367353349,0.00801649,87388.0,87374.0,0.05712428]
[1769367353545,0.11455054,87387.0,87374.0,0.05712428]
[1769367353765,0.0458,87392.0,87374.0,0.05712428]
[1769367353766,0.11455054,87386.0,87374.0,0.05712428]
[1769367353966,0.00801649,87383.0,87361.0,0.04850475]
[1769367354168,0.11455054,87382.0,87364.0,1.14430111]
[1769367354367,0.12256703,87381.0,87365.0,0.04850475]
[1769367354585,0.00801649,87381.0,87365.0,0.04850475]
[1769367355542,0.11452314,87380.0,87365.0,0.04850475]
[1769367355744,0.1145267,87379.0,87362.0,1.14430111]
[1769367355994,0.12254319,87378.0,87361.0,0.0489764]
[1769367356174,0.05020079,87381.0,87361.0,0.0489764]
[1769367356175,0.00801649,87377.0,87361.0,0.0489764]
[1769367356378,0.011444,87382.0,87361.0,0.0489764]
[1769367356379,0.01083255,87389.0,87365.0,0.01144623]
[1769367356576,0.11450064,87384.0,87369.0,1.14430111]
[1769367356920,0.11450064,87383.0,87370.0,0.04850475]
[1769367357114,0.11450064,87382.0,87370.0,0.04850475]
[1769367357243,0.01083255,87387.0,87370.0,0.04850475]
[1769367357244,0.11450064,87381.0,87370.0,0.04850475]
[1769367357457,0.01587346,87386.0,87370.0,0.04850475]
[1769367357820,0.11448546,87385.0,87370.0,0.04850475]
[1769367358139,0.11448546,87384.0,87370.0,0.04850475]
[1769367358299,0.11448546,87383.0,87370.0,0.04850475]
[1769367358497,0.11448546,87382.0,87370.0,0.04850475]
[1769367358696,0.11448546,87381.0,87370.0,0.04850475]
[1769367358897,0.11448546,87380.0,87370.0,0.04850475]
[1769367359220,0.06523775,87381.0,87363.0,0.04850475]
[1769367359422,0.12591474,87380.0,87363.0,0.04850475]
[1769367359652,0.12591474,87380.0,87361.0,0.00047165]
[1769367359653,0.00801649,87372.0,87361.0,0.00047165]
[1769367360186,0.04677315,87377.0,87361.0,0.00047165]
[1769367360408,0.11447526,87376.0,87361.0,0.00047165]
[1769367360624,0.0582178,87377.0,87361.0,0.00047165]
[1769367360823,0.01144531,87372.0,87361.0,0.00047165]
[1769367361031,0.12591963,87376.0,87361.0,0.00047165]
[1769367361032,0.01144518,87373.0,87361.0,0.00047165]
[1769367361240,0.01144531,87372.0,87361.0,0.00047165]
[1769367361460,0.01946167,87373.0,87361.0,0.00047165]
[1769367361694,0.01946245,87367.0,87361.0,0.00047165]
[1769367361894,0.07669276,87367.0,87361.0,0.00047165]
[1769367362225,0.00795041,87366.0,87361.0,0.0004049]
[1769367362425,0.01144649,87363.0,87360.0,0.000229]
[1769367362702,0.01144662,87362.0,87349.0,0.04850475]
[1769367362860,0.01144662,87362.0,87349.0,0.04864638]
[1769367362861,0.01144675,87361.0,87349.0,0.04864638]
[1769367363066,0.01144714,87358.0,87349.0,0.00014163]
[1769367363274,0.03875666,87364.0,87349.0,0.00014163]
[1769367363473,0.01144649,87363.0,87350.0,0.04672058]
[1769367363877,0.01144636,87364.0,87350.0,0.04672058]
[1769367364081,0.1143602,87363.0,87350.0,0.04672058]
[1769367364282,0.01144649,87363.0,87350.0,0.04672058]
[1769367364480,0.01144675,87361.0,87350.0,0.04672058]
[1769367364685,0.03875666,87367.0,87349.0,0.00014163]
[1769367365053,0.27470388,87373.0,87349.0,0.00014163]
[1769367365054,0.00792991,87357.0,87349.0,0.00014163]
[1769367365251,0.01937718,87357.0,87349.0,0.00014163]
[1769367365489,0.01144754,87355.0,87347.0,0.000229]
[1769367365706,0.00701195,87344.0,87334.0,0.04672058]
[1769367365929,0.00748344,87344.0,87334.0,0.04672058]
[1769367366140,0.01192047,87344.0,87328.0,0.04672058]
[1769367366351,0.03875666,87361.0,87335.0,0.04672058]
[1769367366561,0.03875666,87361.0,87341.0,0.10091454]
[1769367366562,0.11419876,87360.0,87341.0,0.10091454]
[1769367366768,0.11419876,87360.0,87348.0,1.15280208]
[1769367366979,0.00014133,87361.0,87349.0,0.04672058]
[1769367367191,0.00014133,87361.0,87336.0,0.01145003]
[1769367367192,0.00839669,87357.0,87336.0,1.15280208]
[1769367367404,0.00839669,87356.0,87337.0,0.04672058]
[1769367367607,0.00839669,87356.0,87336.0,0.04672058]
[1769367367820,0.00839669,87356.0,87337.0,1.15280208]
[1769367368039,0.03875666,87360.0,87340.0,1.15280208]
[1769367368247,0.00014133,87361.0,87343.0,0.04672058]
[1769367368470,0.00014133,87361.0,87347.0,1.15280208]
[1769367368668,0.01144452,87378.0,87362.0,0.04672058]
[1769367368669,0.0458,87378.0,87362.0,0.04672058]
[1769367368882,0.11411213,87377.0,87364.0,1.15280208]
[1769367369100,0.11411213,87377.0,87365.0,0.04672058]
[1769367369290,0.13638933,87377.0,87365.0,0.04672058]
[1769367369496,0.01144505,87374.0,87365.0,0.04672058]
[1769367369695,0.0222772,87377.0,87347.0,0.04672058]
[1769367369696,0.00724095,87365.0,87347.0,0.04672058]
[1769367369872,0.00724095,87365.0,87349.0,0.04672058]
[1769367370083,0.00724095,87365.0,87353.0,0.04672058]
[1769367370279,0.00724095,87365.0,87355.0,0.04672058]
[1769367370486,0.00724095,87365.0,87356.0,0.04672058]
[1769367371884,0.00793598,87364.0,87347.0,0.00014133]
[1769367372085,0.18644533,87370.0,87348.0,0.04672058]
[1769367372285,0.01144662,87362.0,87348.0,0.04672058]
[1769367372453,0.01144623,87365.0,87348.0,0.04672058]
[1769367372906,7.936e-05,87367.0,87348.0,0.04672058]
[1769367373074,7.936e-05,87367.0,87349.0,0.04999999]
[1769367373288,7.936e-05,87367.0,87350.0,0.04999999]
[1769367373525,0.01152532,87367.0,87350.0,0.04999999]
[1769367373723,7.936e-05,87367.0,87350.0,0.04999999]
[1769367374165,0.01144636,87364.0,87350.0,0.04999999]
[1769367374402,0.01144623,87365.0,87350.0,0.04999999]
[1769367374593,0.01152559,87365.0,87350.0,0.04999999]
[1769367374944,0.01144636,87364.0,87350.0,0.04999999]
[1769367375143,0.01152559,87365.0,87350.0,0.04999999]
[1769367375361,7.936e-05,87365.0,87350.0,0.04999999]
[1769367377087,0.01144465,87377.0,87350.0,0.04999999]
[1769367377296,0.01144361,87385.0,87369.0,0.04999999]
[1769367377509,0.01152323,87383.0,87369.0,0.04999999]
[1769367377925,0.0116195,87382.0,87369.0,0.04999999]
[1769367378129,0.0001755,87382.0,87369.0,0.04999999]
[1769367378338,0.01144465,87377.0,87369.0,0.04999999]
[1769367378546,0.01152362,87380.0,87352.0,0.06144792]
[1769367378775,0.01152362,87380.0,87356.0,0.04999999]
[1769367378984,0.01144452,87378.0,87359.0,1.15936031]
[1769367379191,0.01144465,87377.0,87360.0,0.04999999]
[1769367379401,0.01144479,87376.0,87360.0,0.04999999]
[1769367379610,0.01144492,87375.0,87360.0,0.04999999]
[1769367380035,0.01144505,87374.0,87360.0,0.04999999]
[1769367380216,7.936e-05,87373.0,87360.0,0.04999999]
[1769367380943,0.01144465,87377.0,87360.0,0.04999999]
[1769367381150,0.01152388,87378.0,87357.0,0.04999999]
[1769367381360,0.0001755,87382.0,87361.0,0.04999999]
[1769367381573,0.11421569,87381.0,87363.0,0.04999999]
[1769367381777,0.11421569,87381.0,87365.0,0.04999999]
[1769367381982,0.11421569,87381.0,87365.0,1.15936031]
[1769367382193,0.11421569,87381.0,87366.0,0.04999999]
[1769367383063,0.01144505,87374.0,87357.0,0.04999999]
[1769367383483,0.01144531,87372.0,87357.0,0.04999999]
[1769367383691,0.01144557,87370.0,87357.0,0.04999999]
[1769367384279,0.01144531,87372.0,87357.0,0.04999999]
[1769367384483,0.01152454,87373.0,87356.0,1.15936031]
[1769367384785,0.01152454,87373.0,87357.0,0.04993117]
[1769367384986,7.936e-05,87373.0,87357.0,0.04993117]
[1769367385429,0.05722666,87372.0,87357.0,0.04993117]
[1769367385683,0.01144596,87367.0,87357.0,0.04993117]
[1769367385882,0.22890516,87373.0,87350.0,1.15936031]
[1769367385883,0.01144452,87378.0,87367.0,0.01]
[1769367386087,0.01144452,87378.0,87361.0,0.04993117]
[1769367386088,7.936e-05,87376.0,87361.0,0.04993117]
[1769367386271,0.11429566,87375.0,87361.0,0.04993117]
[1769367386515,0.01144505,87374.0,87361.0,0.04993117]
[1769367386719,0.11429566,87373.0,87361.0,0.04993117]
[1769367387119,0.01144531,87372.0,87356.0,1.20929148]
[1769367387324,0.01144531,87372.0,87356.0,0.04993117]
[1769367387525,0.0115248,87371.0,87356.0,0.04993117]
[1769367387723,7.936e-05,87371.0,87356.0,0.04993117]
[1769367388701,0.0115248,87371.0,87356.0,0.04993117]
[1769367389324,0.12581171,87370.0,87356.0,0.04993117]
[1769367389525,0.11436614,87369.0,87356.0,0.04993117]
[1769367389745,0.12581184,87369.0,87356.0,0.04993117]
[1769367389956,0.0114457,87369.0,87356.0,0.04993117]
[1769367390791,0.01144596,87367.0,87356.0,0.04993117]
[1769367391000,7.936e-05,87368.0,87356.0,0.04993117]
[1769367392082,0.01144531,87372.0,87356.0,0.04993117]
[1769367392256,0.11438051,87371.0,87356.0,0.04993117]
[1769367392494,0.12582608,87370.0,87356.0,0.04993117]
[1769367392704,0.02043887,87377.0,87358.0,0.04993117]
[1769367392884,0.01144413,87381.0,87361.0,1.15936031]
[1769367393090,0.01144413,87381.0,87362.0,1.12825121]
[1769367393314,0.0001755,87382.0,87357.0,0.04890947]
[1769367393516,0.0001755,87382.0,87360.0,1.12825121]
[1769367393719,0.01144426,87380.0,87363.0,0.04890947]
[1769367394143,0.0116195,87382.0,87363.0,0.04890947]
[1769367394367,0.01144413,87381.0,87364.0,0.04890947]
[1769367394538,0.0116195,87382.0,87363.0,1.12825121]
[1769367394748,0.0116195,87382.0,87364.0,0.04890947]
[1769367395361,0.0001755,87382.0,87366.0,0.04890947]
[1769367395567,0.0001755,87382.0,87370.0,0.04890947]
[1769367395768,0.0001755,87382.0,87372.0,1.12825121]
[1769367396015,0.0001755,87382.0,87373.0,0.04890947]
[1769367399687,0.0001755,87382.0,87374.0,1.12825121]
[1769367400202,0.0001755,87382.0,87373.0,0.04890947]
[1769367408012,0.01169886,87382.0,87363.0,0.04890947]
[1769367408211,0.04875022,87382.0,87363.0,1.17716068]
[1769367408411,0.04867086,87382.0,87363.0,1.17716068]
[1769367408618,0.04875022,87382.0,87363.0,1.17716068]
[1769367408799,0.04867086,87382.0,87363.0,1.12825121]
[1769367409015,0.04867086,87382.0,87361.0,0.17584]
[1769367409016,0.0001755,87382.0,87371.0,0.01144544]
[1769367409218,0.33628364,87406.0,87384.0,0.04890947]
[1769367409413,0.11431949,87398.0,87387.0,1.12825121]
[1769367409786,0.00042264,87399.0,87391.0,1.12825121]
[1769367410432,0.00042264,87399.0,87385.0,0.17584]
[1769367410433,0.00042264,87399.0,87392.0,0.04890947]
[1769367410660,0.01143968,87415.0,87394.0,0.04890947]
[1769367410851,0.11425991,87414.0,87402.0,1.12825121]
[1769367411036,0.11425991,87414.0,87402.0,0.04890947]
[1769367411328,0.00011333,87415.0,87403.0,1.12825121]
[1769367411533,0.09158364,87437.0,87416.0,0.04890947]
[1769367411745,0.00192165,87430.0,87417.0,1.17716068]
[1769367411950,0.00192165,87430.0,87414.0,0.0098245]
[1769367411951,0.0004,87440.0,87415.0,0.01143968]
[1769367412128,0.0004,87440.0,87422.0,0.10091454]
[1769367412351,0.01183641,87440.0,87423.0,1.17716068]
[1769367412506,0.04889536,87440.0,87423.0,1.17716068]
[1769367413130,0.04889536,87440.0,87423.0,1.17698518]
[1769367413328,0.01171842,87433.0,87416.0,0.04890947]
[1769367413533,0.38377476,87431.0,87416.0,0.04890947]
[1769367413931,0.04849536,87427.0,87413.0,0.17584]
[1769367414139,0.001,87432.0,87413.0,0.17584]
[1769367414140,0.43227012,87426.0,87414.0,0.10091454]
[1769367414340,0.04849536,87426.0,87414.0,0.10091454]
[1769367414543,0.38377476,87430.0,87414.0,0.10091454]
[1769367414977,0.39521248,87430.0,87414.0,0.10091454]
[1769367415184,0.38377476,87430.0,87414.0,0.10091454]
[1769367415570,0.04949536,87432.0,87415.0,1.12825121]
[1769367416036,0.44470757,87432.0,87415.0,1.12825121]
[1769367416192,0.01143785,87429.0,87413.0,0.17584]
[1769367416391,0.01143785,87429.0,87415.0,0.10091454]
[1769367416598,0.44370784,87430.0,87415.0,0.10091454]
[1769367416798,0.01143824,87426.0,87413.0,0.17584]
[1769367417031,0.38377476,87423.0,87411.0,0.0458]
[1769367417260,0.04849536,87422.0,87411.0,0.0458]
[1769367418021,0.04849536,87422.0,87405.0,0.10091454]
[1769367418395,0.43227012,87414.0,87405.0,0.00011333]
[1769367419905,0.01143902,87420.0,87405.0,0.00011333]
[1769367420112,0.38377476,87420.0,87405.0,0.00011333]
[1769367420313,0.04849536,87419.0,87405.0,0.00011333]
[1769367420535,0.04849536,87418.0,87405.0,0.00011333]
[1769367420746,0.43227012,87418.0,87405.0,0.00011333]
[1769367420965,0.01143837,87425.0,87405.0,0.00011333]
[1769367420966,0.01143798,87428.0,87405.0,0.00011333]
[1769367421236,0.0458,87434.0,87420.0,0.04890947]
[1769367421462,0.04889536,87445.0,87425.0,1.12825121]
[1769367421463,0.04849536,87445.0,87425.0,1.12825121]
[1769367421677,0.0002361,87462.0,87419.0,0.01143916]
[1769367421678,0.38377476,87451.0,87429.0,1.12825121]
[1769367421886,0.04849536,87455.0,87433.0,1.12825121]
[1769367421887,0.05992981,87455.0,87433.0,1.12825121]
[1769367422103,0.01143484,87452.0,87434.0,0.04890947]
[1769367422318,0.01143484,87452.0,87437.0,0.04890947]
[1769367422522,0.05992981,87455.0,87437.0,0.04890947]
[1769367422757,0.38377476,87454.0,87437.0,0.04890947]
[1769367422981,0.0002,87457.0,87445.0,1.12825121]
[1769367423181,0.0002,87457.0,87448.0,0.04654667]
[1769367423182,0.00047183,87454.0,87448.0,0.04654667]
[1769367424030,0.00047183,87454.0,87443.0,0.14746121]
[1769367424441,0.40993298,87454.0,87437.0,0.04654667]
[1769367424647,0.01143471,87453.0,87437.0,0.04654667]
[1769367424855,0.01143471,87453.0,87436.0,1.33674094]
[1769367424856,0.00047183,87454.0,87438.0,0.04654667]
[1769367425030,0.00047183,87454.0,87440.0,0.04654667]
[1769367425275,0.00047183,87454.0,87441.0,0.04654667]
[1769367425480,0.00047183,87454.0,87442.0,0.04654667]
[1769367425684,0.00047183,87454.0,87443.0,1.16094094]
[1769367425890,0.00047183,87454.0,87445.0,0.04654667]
[1769367426102,0.00047183,87454.0,87447.0,0.04654667]
[1769367426549,0.00047183,87454.0,87441.0,1.16094094]
[1769367426759,0.00047183,87454.0,87430.0,0.05719772]
[1769367426760,0.01143641,87440.0,87430.0,0.09230667]
[1769367426969,0.38913153,87440.0,87430.0,0.04576]
[1769367427178,0.01143706,87435.0,87430.0,0.04576]
[1769367427385,0.01143654,87439.0,87430.0,0.04576]
[1769367427765,0.38913179,87438.0,87430.0,0.04576]
[1769367427996,0.01143471,87453.0,87438.0,0.01]
[1769367428201,0.01143484,87452.0,87438.0,0.01]
[1769367428411,0.37769512,87451.0,87438.0,0.01]
[1769367428618,0.00047183,87454.0,87441.0,0.04654667]
[1769367428828,0.00047183,87454.0,87444.0,1.20748761]
[1769367429244,0.00047183,87454.0,87445.0,0.04654667]
[1769367429452,0.00047183,87454.0,87447.0,0.04654667]
[1769367430292,0.0002361,87462.0,87455.0,0.04654667]
[1769367430506,0.00037753,87462.0,87459.0,0.04654667]
[1769367430926,0.00037753,87462.0,87461.0,0.04654667]
[1769367432366,0.0114317,87476.0,87455.0,0.04654667]
[1769367432576,0.37826688,87472.0,87457.0,0.04654667]
[1769367432779,0.01143301,87466.0,87457.0,0.00014143]
[1769367432931,0.38969976,87467.0,87457.0,0.00014143]
[1769367433513,0.01143301,87466.0,87457.0,0.00014143]
[1769367433730,0.01143314,87465.0,87457.0,0.00014143]
[1769367434340,0.01143288,87467.0,87457.0,0.00014143]
[1769367434538,0.37826688,87464.0,87457.0,0.00014143]
[1769367434739,0.37812686,87460.0,87444.0,0.04654667]
[1769367434940,0.38970195,87460.0,87444.0,0.04654667]
[1769367435169,0.37826816,87460.0,87444.0,1.20748761]
[1769367435361,0.0002,87468.0,87461.0,1.15655178]
[1769367435542,0.0002,87468.0,87461.0,0.04570394]
[1769367435943,0.0002,87468.0,87461.0,1.15655178]
[1769367436167,0.0002,87468.0,87462.0,0.10091454]
[1769367436490,0.0002,87468.0,87466.0,0.04570394]
[1769367436703,0.0002,87477.0,87466.0,0.04570394]
[1769367438293,0.01163157,87477.0,87466.0,0.04570394]
[1769367438494,0.33046409,87473.0,87463.0,0.17572]
[1769367438783,0.33046409,87473.0,87464.0,0.10091454]
[1769367438986,0.01143262,87469.0,87460.0,0.17572]
[1769367439184,0.01143262,87469.0,87455.0,0.10091454]
[1769367439185,0.01143366,87461.0,87455.0,0.10091454]
[1769367439553,0.01143379,87460.0,87448.0,0.04570394]
[1769367439833,0.01143353,87462.0,87455.0,0.10091454]
[1769367440044,0.319032,87450.0,87448.0,0.0001413]
[1769367440246,0.01143641,87440.0,87432.0,0.04570394]
[1769367440492,0.01143641,87440.0,87432.0,0.00047183]
[1769367440493,0.25959925,87435.0,87432.0,0.00047183]
[1769367440700,0.01143654,87439.0,87432.0,0.00047183]
[1769367440907,0.25913214,87434.0,87420.0,0.10091454]
[1769367441126,0.25913214,87430.0,87420.0,0.10091454]
[1769367441412,0.00047125,87434.0,87430.0,0.01]
[1769367441663,0.00047125,87434.0,87423.0,0.04570394]
[1769367443217,0.01143458,87454.0,87435.0,0.04570394]
[1769367443420,0.11387368,87453.0,87436.0,0.04570394]
[1769367443622,0.12530839,87453.0,87436.0,0.04570394]
[1769367443858,0.12530852,87452.0,87436.0,0.04570394]
[1769367444060,0.0114351,87450.0,87436.0,0.04570394]
[1769367444273,0.01143523,87449.0,87436.0,0.04570394]
[1769367444479,0.06860958,87453.0,87435.0,0.10091454]
[1769367444480,0.0114334,87463.0,87439.0,1.11084784]
[1769367444681,0.1253129,87462.0,87445.0,0.04570394]
[1769367444883,0.01143353,87462.0,87445.0,0.04570394]
[1769367445086,0.24778816,87459.0,87445.0,0.04570394]
[1769367445288,0.01143405,87458.0,87445.0,0.04570394]
[1769367445696,0.23635424,87459.0,87445.0,0.04570394]
[1769367446243,0.24778816,87459.0,87445.0,0.04570394]
[1769367446432,0.23635424,87459.0,87445.0,0.04570394]
[1769367446815,0.24778816,87459.0,87445.0,0.04570394]
[1769367447015,0.23635424,87459.0,87445.0,0.04570394]
[1769367447283,0.24009094,87467.0,87439.0,0.00014127]
[1769367447284,0.01143196,87474.0,87459.0,0.01]
[1769367447493,0.24778712,87467.0,87441.0,1.11084784]
[1769367447698,0.24778712,87467.0,87440.0,0.04576]
[1769367447699,0.23635424,87467.0,87454.0,0.10091454]
[1769367448103,0.01143249,87470.0,87454.0,0.10091454]
[1769367448350,0.24778686,87469.0,87454.0,0.10091454]
[1769367448800,0.23635424,87469.0,87454.0,0.10091454]
[1769367449005,0.24778712,87467.0,87449.0,0.10091454]
[1769367449214,0.23635424,87467.0,87449.0,0.10091454]
[1769367449625,0.05882432,87467.0,87449.0,0.10091454]
[1769367451406,0.06059962,87471.0,87449.0,1.21176238]
[1769367451612,0.04106164,87468.0,87449.0,1.25746632]
[1769367451836,0.01143314,87465.0,87450.0,0.10091454]
[1769367452036,0.0114334,87463.0,87450.0,0.10091454]
[1769367452237,0.0114334,87463.0,87449.0,0.04570394]
[1769367452451,0.06059962,87460.0,87450.0,0.10091454]
[1769367452669,0.05249556,87459.0,87442.0,0.04570394]
[1769367452880,0.06059962,87457.0,87451.0,0.10091454]
[1769367453848,0.06059962,87462.0,87451.0,0.10091454]
[1769367454405,0.07203315,87462.0,87451.0,0.10091454]
[1769367454587,0.06059962,87462.0,87451.0,0.10091454]
[1769367455047,0.06059962,87462.0,87444.0,0.04781739]
[1769367455249,0.04106164,87463.0,87444.0,0.04781739]
[1769367455456,0.01143405,87458.0,87444.0,0.14873193]
[1769367455875,0.06059962,87460.0,87444.0,0.14873193]
[1769367456080,0.07203341,87460.0,87444.0,0.14873193]
[1769367456281,0.07203341,87460.0,87445.0,0.01593434]
[1769367456477,0.06059962,87460.0,87444.0,0.14873193]
[1769367458908,0.07203341,87460.0,87444.0,0.14873193]
[1769367459108,0.06059962,87460.0,87444.0,0.14873193]
[1769367459635,0.01143392,87459.0,87444.0,0.14873193]
[1769367459845,0.01143419,87457.0,87444.0,0.14873193]
[1769367459988,0.01143405,87458.0,87444.0,0.14873193]
[1769367460191,0.01143392,87459.0,87444.0,0.14873193]
[1769367460400,0.01143405,87458.0,87444.0,0.14873193]
[1769367460606,0.01143392,87459.0,87444.0,0.14873193]
[1769367460970,0.07203341,87460.0,87444.0,0.14873193]
[1769367461185,0.07203341,87460.0,87439.0,0.00014127]
[1769367461186,0.04106164,87472.0,87439.0,0.00014127]
[1769367461372,0.13937637,87443.0,87439.0,0.00014127]
[1769367461586,0.01,87444.0,87441.0,1.05423121]
[1769367461794,0.18690267,87458.0,87442.0,0.04781739]
[1769367462017,0.11414692,87457.0,87442.0,0.04781739]
[1769367462210,0.11414692,87456.0,87442.0,0.04781739]
[1769367462427,0.11414692,87455.0,87442.0,0.04781739]
[1769367462631,0.11414692,87454.0,87442.0,0.04781739]
[1769367462841,0.11414692,87453.0,87442.0,0.04781739]
[1769367463051,0.11414692,87452.0,87439.0,0.00014127]
[1769367463228,0.14584103,87451.0,87439.0,0.00014127]
[1769367464059,0.13923652,87443.0,87432.0,0.17568]
[1769367464266,0.00014127,87443.0,87435.0,0.10091454]
[1769367464466,0.00014127,87443.0,87433.0,0.04781739]
[1769367464666,0.00014127,87443.0,87436.0,0.10091454]
[1769367465117,0.00014127,87443.0,87433.0,0.04781739]
[1769367465435,0.00014127,87443.0,87436.0,0.10091454]
[1769367466208,0.01143366,87461.0,87441.0,1.05423121]
[1769367466563,0.11412253,87460.0,87443.0,0.04781739]
[1769367466972,0.11412253,87459.0,87443.0,0.04781739]
[1769367467181,0.11412253,87458.0,87443.0,0.04781739]
[1769367467391,0.11412253,87457.0,87443.0,0.04781739]
[1769367467594,0.11412253,87456.0,87445.0,0.04781739]
[1769367467801,0.01143353,87462.0,87444.0,0.04781739]
[1769367468011,0.14570396,87460.0,87444.0,0.04781739]
[1769367468215,0.15713801,87458.0,87444.0,0.04781739]
[1769367468427,0.01143445,87455.0,87438.0,1.05423121]
[1769367468635,0.1141408,87454.0,87438.0,0.04781739]